Workbook

Sheet Displacement
A1: Variable | B1: Value | C1: Units | I1: Distance (m) | J1: Profile sample (mm) | K1: Suspension Displacement | L1: Suspension velocity | M1: Axle Displacement | N1: Axle velocity | O1: Rectified slope (RS) (m/km) | P1: IRI (m/km)
A2: M | B2: 0.15 | C2: Unitless | K2: Zs (m/km) | L2: Zs_dot (m/(sec km) | M2: Zu (m/km) | N2: Zu_dot (m/(sec km)
A3: K1 | B3: 653 | C3: 1/sec_square
A4: K2 | B4: 63.3 | C4: 1/sec_square
A5: C | B5: 6 | C5: 1/sec
A6: V | B6: 80 | C6: km/h
A7: step size | B7: 0.025 | C7: m (distance between two pts)
B9: 0 | C9: 1 | D9: 0 | E9: 0
A10: A= | B10: =-B4 -> -63.3 | C10: =-B5 -> -6 | D10: =B4 -> 63.3 | E10: =B5 -> 6
B11: 0 | C11: 0 | D11: 0 | E11: 1
B12: =B4/B2 -> 422 | C12: =B5/B2 -> 40 | D12: =-(B3+B4)/B2 -> -4775.333333 | E12: =-B5/B2 -> -40
A15: B= | B15: 0
B16: 0
B17: 0
B18: =B3/B2 -> 4353.333333
A20: Spreadsheet manual
A21: 1- | C21: these cells are your input. You have to input values on those cells
A22: 2- | B22: After yoou filled up the required cells, you have to click
B23: on the "Calculate Displacements" to get the results in columns K through N
A24: 3- | C24: these cells will be filled for you
A25: 4- | C25: You have to input the formulas to calculate the correspondent
C26: variable in these cells

Sheet Fuel Consumption and Emission
A1: Inputs | G1: Speed (km/h) | H1: FC (mL/km) | I1: HC (g/km) | J1: CO (g/km) | K1: Nox (g/km) | L1: SO2 (g/km) | M1: Pb (g/km)
A2: Tdsp (mm) | B2: 5 | G2: 70 | H2: =($C$15*($C$16+$C$17*$B$2+$C$18*$B$3+$C$19*$C$20))*($C$12*$C$9+$C$7*($C$13*$C$8+$C$14*($G2*10^3/3600)^2))/$C$10 -> 13.02393102 | I2: =$C$26*H2*$C$24+$C$27*1000/(G2*1000/3600) -> 0.1172153792 | J2: =$C$30*H2*$C$24 -> 0.9767948266 | K2: =MAX($C$28*(H2*$C$24-$C$29*1000/(G2*1000/3600)),0) -> 0.05638001176 | L2: =2*$C$31*H2*$C$24 -> 0.009767948266 | M2: =$C$32*$C$33*H2*$C$24 -> 0.003934041164
A3: IRI (m/km) | B3: 2
A6: FC Model Parameters
A7: CR1 | C7: 1
A8: M | B8: (kg) | C8: 1900
A9: Nw | C9: 4
A10: xi | B10: (MJ/L) | C10: 10.5
A11: WD | B11: (m) | C11: 0.6
A12: b11 | C12: =37*C11 -> 22.2
A13: b12 | C13: =0.064/C11 -> 0.1066666667
A14: b13 | C14: =0.012*C9/C11^2 -> 0.1333333333
A15: Kcr2 | C15: 0.5
A16: A0 | C16: 0.5
A17: A1 | C17: 0.02
A18: A2 | C18: 0.1
A19: A3 | C19: 0
A20: DEF (mm) | C20: 0
A22: Emission Model Parameters
A23: Vehicle | C23: Passenger car
A24: MassFuel (g/mL) | C24: 0.75
A25: Fuel Type | C25: P
A26: HC | B26: aHC | C26: 0.012
B27: rHC | C27: 0
A28: NOx | B28: aNOx | C28: 0.055
B29: FRNOx | C29: 0.17
A30: CO | B30: aCO | C30: 0.1
A31: SO2 | B31: aSO2 | C31: 0.0005
A32: Pb | B32: Prop_Pb | C32: 0.75
B33: aPb | C33: 0.000537

Sheet Run (hidden)
A1: =_xlfn.MUNIT(4) -> 1 | B1: 0 | C1: 0 | D1: 0 | F1: 0 | G1: 1 | H1: 0 | I1: 0 | K1: =PowerMatrix(Run!F1:I4,15) -> -1.661618013e+25 | L1: -1.761806684e+24 | M1: 1.96124627e+26 | N1: 3.364677992e+24
A2: 0 | B2: 1 | C2: 0 | D2: 0 | F2: -63.3 | G2: -6 | H2: 63.3 | I2: 6 | K2: 1.531416476e+27 | L2: 1.285417796e+26 | M2: -1.617898133e+28 | N2: 5.096666719e+25
A3: 0 | B3: 0 | C3: 1 | D3: 0 | F3: 0 | G3: 0 | H3: 0 | I3: 1 | K3: 2.633450627e+26 | L3: 2.243118661e+25 | M3: -2.800492634e+27 | N3: 5.275495955e+24
A4: 0 | B4: 0 | C4: 0 | D4: 1 | F4: 422 | G4: 40 | H4: -4775.333333 | I4: -40 | K4: 8.063651804e+26 | L4: 3.397777812e+26 | M4: -2.377235757e+28 | N4: -2.876925353e+27
F6: 0.999960627 | G6: 0.001121253129 | H6: 3.323768823e-05 | I6: 3.74514211e-06
F7: -0.06939487308 | G7: 0.9933829139 | H7: 0.05309102109 | I7: 0.006610950776
F8: 0.0002623656707 | G8: 2.496761407e-05 | H8: 0.9970249463 | I8: 0.00109901113
F9: 0.4622022468 | G9: 0.04407300517 | H9: -5.246564031 | I9: 0.9532143068 | Q9: 6.135361757e-06
Q10: 0.01630385198
Q11: 0.002712688015
Q12: 4.784361785
